fUST/lending_fUST_20250628
["ID","MTS","AMOUNT","RATE_DAILY","PERIOD"]
[368297358,1751099446801,-460.0,0.00020273,2]
[368297359,1751099446811,-314.20416739,0.00020273,2]
[368297360,1751099446820,-460.0,0.00020273,2]
[368297361,1751099446830,-460.0,0.00020273,2]
[368297362,1751099446840,-310.60241605,0.00020273,2]
[368297363,1751099446849,-1543.49,0.00020273,2]
[368297364,1751099446859,-478.61,0.00020273,2]
[368297365,1751099446868,-3923.5,0.00020273,2]
[368297366,1751099446878,-460.0,0.00020273,2]
[368297367,1751099446888,-1515.01,0.00020273,2]
[368297368,1751099446898,-1385.81,0.00020273,2]
[368297369,1751099446909,-460.0,0.00020273,2]
[368297370,1751099446921,-460.0,0.00020273,2]
[368297371,1751099446931,-1204.35,0.00020273,2]
[368297372,1751099446941,-2302.16,0.00020273,2]
[368297373,1751099446950,-460.0,0.00020273,2]
[368297374,1751099446960,-507.07,0.00020273,2]
[368297375,1751099446970,-460.0,0.00020273,2]
[368297376,1751099446980,-676.15,0.00020273,2]
[368297377,1751099446991,-297.50663095,0.00020273,2]
[368297378,1751099447000,-557.87,0.00020273,2]
[368297379,1751099447009,-2187.52,0.00020273,2]
[368297380,1751099447019,-705.88,0.00020273,2]
[368297381,1751099447029,-650.49,0.00020273,2]
[368297382,1751099447039,-1308.12,0.00020273,2]
[368297383,1751099447049,-558.93,0.00020273,2]
[368297384,1751099447059,-950.27,0.00020273,2]
[368297385,1751099447069,-460.0,0.00020273,2]
[368297386,1751099447078,-460.0,0.00020273,2]
[368297387,1751099447088,-460.0,0.00020273,2]
[368297388,1751099447098,-481.03,0.00020273,2]
[368297389,1751099447109,-313.12360558,0.00020273,2]
[368297390,1751099447125,-460.0,0.00020273,2]
[368297391,1751099447138,-460.0,0.00020273,2]
[368297392,1751099447151,-2224.44,0.00020273,2]
[368297393,1751099447164,-915.82,0.00020273,2]
[368297394,1751099447177,-460.0,0.00020273,2]
[368297395,1751099447190,-2092.47,0.00020273,2]
[368297396,1751099447203,-460.0,0.00020273,2]
[368297397,1751099447216,-460.0,0.00020273,2]
[368297398,1751099447231,-2722.65,0.00020273,2]
[368297399,1751099447243,-2287.45,0.00020273,2]
[368297400,1751099447255,-460.0,0.00020273,2]
[368297401,1751099447267,-460.0,0.00020273,2]
[368297402,1751099447279,-460.0,0.00020273,2]
[368297403,1751099447292,-525.54,0.00020273,2]
[368297404,1751099447304,-3380.33,0.00020273,2]
[368297405,1751099447317,-469.96,0.00020273,2]
[368297406,1751099447329,-460.0,0.00020273,2]
[368297407,1751099447342,-460.0,0.00020273,2]
[368297408,1751099447355,-460.0,0.00020273,2]
[368297409,1751099447368,-460.0,0.00020273,2]
[368297410,1751099447379,-460.0,0.00020273,2]
[368297411,1751099447391,-460.0,0.00020273,2]
[368297412,1751099447404,-1368.9,0.00020273,2]
[368297413,1751099447417,-2136.66,0.00020273,2]
[368297414,1751099447429,-1309.53,0.00020273,2]
[368297415,1751099447442,-779.1,0.00020273,2]
[368297416,1751099447454,-267.33238559,0.00020273,2]
[368297417,1751099447467,-922.04,0.00020273,2]
[368297418,1751099447480,-460.0,0.00020273,2]
[368297419,1751099447492,-529.0,0.00020273,2]
[368297420,1751099447504,-460.0,0.00020273,2]
[368297421,1751099447516,-1476.74,0.00020273,2]
[368297422,1751099447526,-460.0,0.00020273,2]
[368297423,1751099447537,-573.62,0.00020273,2]
[368297424,1751099447548,-460.0,0.00020273,2]
[368297425,1751099447563,-543.95,0.00020273,2]
[368297426,1751099447575,-465.46,0.00020273,2]
[368297427,1751099447586,-872.57,0.00020273,2]
[368297428,1751099447596,-670.11,0.00020273,2]
[368297429,1751099447607,-623.9,0.00020273,2]
[368297430,1751099447620,-9968.96107036,0.00020314,3]
[368297431,1751099447633,-300.0,0.00020377,2]
[368297432,1751099447645,-890.0,0.00020393,2]
[368297433,1751099447656,-575.2177202,0.00020438,2]
[368297434,1751099447667,-153.0,0.00020438,2]
[368297435,1751099447679,-153.0,0.00020438,2]
[368297436,1751099447690,-153.0,0.00020438,2]
[368297437,1751099447701,-153.0,0.00020438,2]
[368297438,1751099447714,-575.2177202,0.00020438,2]
[368297439,1751099447725,-575.2177202,0.00020438,2]
[368297440,1751099447737,-575.2177202,0.00020438,2]
[368297441,1751099447749,-153.0,0.00020438,2]
[368297442,1751099447761,-575.2177202,0.00020438,2]
[368297443,1751099447772,-575.2177202,0.00020438,2]
[368297444,1751099447783,-153.0,0.00020438,2]
[368297445,1751099447795,-516.3142487,0.00020438,2]
[368297446,1751099447807,-9968.96107036,0.00020521,3]
[368297447,1751099447819,-1051.54,0.00020538,3]
[368297448,1751099447830,-525.78,0.00020538,3]
[368297449,1751099447842,-160.0,0.00020538,3]
[368297450,1751099447854,-12564.78152626,0.00020538,3]
[368297451,1751099447866,-213.78848551,0.00020538,3]
[368297452,1751099447878,-280.69,0.00020546,2]
[368297453,1751099447889,-460.0,0.00020547,2]
[368297454,1751099447901,-500.0,0.00020547,14]
[368297455,1751099447913,-460.0,0.00020547,2]
[368297456,1751099447924,-460.0,0.00020547,2]
[368297457,1751099447936,-460.0,0.00020547,2]
[368297458,1751099447947,-212.64,0.00020547,2]
[368297459,1751099447959,-665.9,0.00020547,2]
[368297460,1751099447971,-460.0,0.00020547,2]
[368297461,1751099447983,-476.45581029,0.00020547,2]
[368297462,1751099447995,-460.0,0.00020547,2]
[368297463,1751099448008,-1543.49,0.00020547,2]
[368297464,1751099448019,-3923.5,0.00020547,2]
[368297465,1751099448031,-583.06005202,0.00020547,2]
[368297466,1751099448042,-1515.01,0.00020547,2]
[368297467,1751099448053,-1385.81,0.00020547,2]
[368297468,1751099448065,-460.0,0.00020547,2]
[368297469,1751099448076,-460.0,0.00020547,2]
[368297470,1751099448087,-1204.35,0.00020547,2]
[368297471,1751099448099,-2302.16,0.00020547,2]
[368297472,1751099448111,-460.0,0.00020547,2]
[368297473,1751099448123,-507.07,0.00020547,2]
[368297474,1751099448135,-460.0,0.00020547,2]
[368297475,1751099448146,-676.15,0.00020547,2]
[368297476,1751099448158,-557.87,0.00020547,2]
[368297477,1751099448170,-2187.52,0.00020547,2]
[368297478,1751099448183,-705.88,0.00020547,2]
[368297479,1751099448194,-650.49,0.00020547,2]
[368297480,1751099448206,-1308.12,0.00020547,2]
[368297481,1751099448218,-558.93,0.00020547,2]
[368297482,1751099448229,-950.27,0.00020547,2]
[368297483,1751099448241,-460.0,0.00020547,2]
[368297484,1751099448252,-460.0,0.00020547,2]
[368297485,1751099448264,-460.0,0.00020547,2]
[368297486,1751099448277,-481.03,0.00020547,2]
[368297487,1751099448288,-460.0,0.00020547,2]
[368297488,1751099448299,-460.0,0.00020547,2]
[368297489,1751099448310,-2224.44,0.00020547,2]
[368297490,1751099448321,-915.82,0.00020547,2]
[368297491,1751099448333,-160.0,0.00020547,2]
[368297492,1751099448345,-2092.47,0.00020547,2]
[368297493,1751099448356,-460.0,0.00020547,2]
[368297494,1751099448368,-460.0,0.00020547,2]
[368297495,1751099448379,-2722.65,0.00020547,2]
[368297496,1751099448391,-2287.45,0.00020547,2]
[368297497,1751099448402,-460.0,0.00020547,2]
[368297498,1751099448414,-460.0,0.00020547,2]
[368297499,1751099448426,-460.0,0.00020547,2]
[368297500,1751099448437,-525.54,0.00020547,2]
[368297501,1751099448449,-3380.33,0.00020547,2]
[368297502,1751099448460,-469.96,0.00020547,2]
[368297503,1751099448472,-460.0,0.00020547,2]
[368297504,1751099448484,-460.0,0.00020547,2]
[368297505,1751099448497,-460.0,0.00020547,2]
[368297506,1751099448509,-460.0,0.00020547,2]
[368297507,1751099448520,-460.0,0.00020547,2]
[368297508,1751099448689,-460.0,0.00020547,2]
[368297509,1751099448708,-1368.9,0.00020547,2]
[368297510,1751099448721,-2136.66,0.00020547,2]
[368297511,1751099448732,-1309.53,0.00020547,2]
[368297512,1751099448741,-779.1,0.00020547,2]
[368297513,1751099448751,-922.04,0.00020547,2]
[368297514,1751099448761,-460.0,0.00020547,2]
[368297515,1751099448771,-460.0,0.00020547,2]
[368297516,1751099448781,-1476.74,0.00020547,2]
[368297517,1751099448791,-460.0,0.00020547,2]
[368297518,1751099448801,-573.62,0.00020547,2]
[368297519,1751099448811,-460.0,0.00020547,2]
[368297520,1751099448821,-543.95,0.00020547,2]
[368297521,1751099448830,-465.46,0.00020547,2]
[368297522,1751099448840,-872.57,0.00020547,2]
[368297523,1751099448850,-670.11,0.00020547,2]
[368297524,1751099448860,-623.9,0.00020547,2]
[368297525,1751099448869,-431.40476906,0.00020558,2]
[368297526,1751099448878,-500.0,0.00020593,2]
[368297527,1751099448889,-3797.86,0.000206,2]
[368297528,1751099448898,-151.0,0.000207,4]
[368297529,1751099448908,-9968.96107036,0.00020728,3]
[368297530,1751099448923,-890.0,0.00020762,2]
[368297531,1751099448932,-1500.0,0.00020782,2]
[368297532,1751099448943,-381.31500128,0.00020811,2]
[368297533,1751099448952,-460.0,0.00020821,2]
[368297534,1751099448963,-460.0,0.00020821,2]
[368297535,1751099448972,-460.0,0.00020821,2]
[368297536,1751099448982,-460.0,0.00020821,2]
[368297537,1751099448991,-665.9,0.00020821,2]
[368297538,1751099449000,-460.0,0.00020821,2]
[368297539,1751099449010,-460.0,0.00020821,2]
[368297540,1751099449020,-1543.49,0.00020821,2]
[368297541,1751099449030,-212.9,0.00020821,3]
[368297542,1751099449039,-3923.5,0.00020821,2]
[368297543,1751099449049,-1515.01,0.00020821,2]
[368297544,1751099449059,-1385.81,0.00020821,2]
[368297545,1751099449069,-460.0,0.00020821,2]
[368297546,1751099449078,-460.0,0.00020821,2]
[368297547,1751099449088,-1204.35,0.00020821,2]
[368297548,1751099449097,-2302.16,0.00020821,2]
[368297549,1751099449107,-460.0,0.00020821,2]
[368297550,1751099449117,-507.07,0.00020821,2]
[368297551,1751099449127,-460.0,0.00020821,2]
[368297552,1751099449136,-676.15,0.00020821,2]
[368297553,1751099449146,-557.87,0.00020821,2]
[368297554,1751099449156,-2187.52,0.00020821,2]
[368297555,1751099449165,-705.88,0.00020821,2]
[368297556,1751099449175,-650.49,0.00020821,2]
[368297557,1751099449184,-1308.12,0.00020821,2]
[368297558,1751099449193,-558.93,0.00020821,2]
[368297559,1751099449203,-950.27,0.00020821,2]
[368297560,1751099449212,-460.0,0.00020821,2]
[368297561,1751099449222,-460.0,0.00020821,2]
[368297562,1751099449232,-460.0,0.00020821,2]
[368297563,1751099449241,-481.03,0.00020821,2]
[368297564,1751099449251,-460.0,0.00020821,2]
[368297565,1751099449260,-460.0,0.00020821,2]
[368297566,1751099449270,-2224.44,0.00020821,2]
[368297567,1751099449281,-915.82,0.00020821,2]
[368297568,1751099449290,-2092.47,0.00020821,2]
[368297569,1751099449300,-460.0,0.00020821,2]
[368297570,1751099449310,-460.0,0.00020821,2]
[368297571,1751099449319,-2722.65,0.00020821,2]
[368297572,1751099449329,-2287.45,0.00020821,2]
[368297573,1751099449338,-460.0,0.00020821,2]
[368297574,1751099449348,-460.0,0.00020821,2]
[368297575,1751099449358,-460.0,0.00020821,2]
[368297576,1751099449367,-525.54,0.00020821,2]
[368297577,1751099449377,-3380.33,0.00020821,2]
[368297578,1751099449386,-469.96,0.00020821,2]
[368297579,1751099449395,-460.0,0.00020821,2]
[368297580,1751099449405,-460.0,0.00020821,2]
[368297581,1751099449414,-460.0,0.00020821,2]
[368297582,1751099449423,-460.0,0.00020821,2]
[368297583,1751099449432,-460.0,0.00020821,2]
[368297584,1751099449442,-1368.9,0.00020821,2]
[368297585,1751099449451,-2136.66,0.00020821,2]
[368297586,1751099449460,-1309.53,0.00020821,2]
[368297587,1751099449470,-779.1,0.00020821,2]
[368297588,1751099449479,-922.04,0.00020821,2]
[368297589,1751099449488,-460.0,0.00020821,2]
[368297590,1751099449497,-460.0,0.00020821,2]
[368297591,1751099449506,-1476.74,0.00020821,2]
[368297592,1751099449515,-573.62,0.00020821,2]
[368297593,1751099449524,-460.0,0.00020821,2]
[368297594,1751099449533,-460.0,0.00020821,2]
[368297595,1751099449543,-543.95,0.00020821,2]
[368297596,1751099449552,-465.46,0.00020821,2]
[368297597,1751099449561,-872.57,0.00020821,2]
[368297598,1751099449570,-670.11,0.00020821,2]
[368297599,1751099449580,-623.9,0.00020821,2]
[368297600,1751099449589,-465.0,0.00020823,2]
[368297601,1751099449598,-207.4,0.00020843,2]
[368297602,1751099449608,-5000.0,0.00020843,2]
[368297603,1751099449617,-25000.0,0.00020843,2]
[368297604,1751099449627,-160.3588391,0.00020843,2]
[368297605,1751099449638,-9467.15036975,0.00020843,2]
[368297606,1751099449648,-500.0,0.00020843,2]
[368297607,1751099449658,-503.93739225,0.00020843,2]
[368297608,1751099449667,-2001.05393756,0.00020843,2]
[368297609,1751099449677,-154.31315253,0.00020843,2]
[368297610,1751099449687,-666.0,0.00020843,2]
[368297611,1751099449696,-500.0,0.00020843,2]
[368297612,1751099449705,-500.0,0.00020843,2]
[368297613,1751099449714,-151.0,0.00020843,2]
[368297614,1751099449723,-246.59496078,0.00020843,2]
[368297615,1751099449733,-500.0,0.00020843,2]
[368297616,1751099449742,-151.0,0.00020843,2]
[368297617,1751099449751,-500.0,0.00020843,2]
[368297618,1751099449760,-202.98774678,0.00020843,2]
[368297619,1751099449769,-500.0,0.00020843,2]
[368297620,1751099449779,-500.0,0.00020843,2]
[368297621,1751099449788,-500.0,0.00020843,2]
[368297622,1751099449797,-500.0,0.00020843,2]
[368297623,1751099449807,-500.0,0.00020843,2]
[368297624,1751099449816,-500.0,0.00020843,2]
[368297625,1751099449825,-500.0,0.00020843,2]
[368297626,1751099449834,-500.0,0.00020843,2]
[368297627,1751099449843,-500.0,0.00020843,2]
[368297628,1751099449852,-500.0,0.00020843,2]
[368297629,1751099449861,-500.0,0.00020843,2]
[368297630,1751099449871,-500.0,0.00020843,2]
[368297631,1751099449881,-500.0,0.00020843,2]
[368297632,1751099449890,-500.0,0.00020843,2]
[368297633,1751099449900,-1119.25976507,0.00020859,2]
[368297634,1751099449910,-690.642,0.00020898,2]
[368297635,1751099449922,-18288.517,0.000209,2]
[368297636,1751099449931,-151.0,0.000209,3]
[368297637,1751099449940,-9968.96107036,0.00020934,4]
[368297638,1751099449950,-716.195754,0.00020953,2]
[368297639,1751099449961,-500.0,0.00020958,15]
[368297640,1751099449971,-890.0,0.0002096,2]
[368297641,1751099449980,-269.1667008,0.00021,2]
[368297642,1751099449990,-5209.47194379,0.00021,2]
[368297643,1751099450000,-201.33996909,0.00021,2]
[368297644,1751099450009,-742.6949969,0.00021008,2]
[368297645,1751099450019,-465.0,0.00021016,2]
[368297646,1751099450029,-212.9,0.00021056,4]
[368297647,1751099450039,-770.17471178,0.00021063,2]
[368297648,1751099450048,-7491.30838881,0.00021095,2]
[368297649,1751099450057,-460.0,0.00021095,2]
[368297650,1751099450067,-460.0,0.00021095,2]
[368297651,1751099450075,-460.0,0.00021095,2]
[368297652,1751099450085,-460.0,0.00021095,2]
[368297653,1751099450095,-665.9,0.00021095,2]
[368297654,1751099450105,-460.0,0.00021095,2]
[368297655,1751099450114,-460.0,0.00021095,2]
[368297656,1751099450124,-1543.49,0.00021095,2]
[368297657,1751099450133,-3923.5,0.00021095,2]
[368297658,1751099450142,-1515.01,0.00021095,2]
[368297659,1751099450151,-1385.81,0.00021095,2]
[368297660,1751099450160,-460.0,0.00021095,2]
[368297661,1751099450170,-460.0,0.00021095,2]
[368297662,1751099450179,-1204.35,0.00021095,2]
[368297663,1751099450188,-2302.16,0.00021095,2]
[368297664,1751099450198,-507.07,0.00021095,2]
[368297665,1751099450207,-460.0,0.00021095,2]
[368297666,1751099450216,-676.15,0.00021095,2]
[368297667,1751099450225,-557.87,0.00021095,2]
[368297668,1751099450235,-2187.52,0.00021095,2]
[368297669,1751099450244,-705.88,0.00021095,2]
[368297670,1751099450254,-650.49,0.00021095,2]
[368297671,1751099450263,-1308.12,0.00021095,2]
[368297672,1751099450272,-558.93,0.00021095,2]
[368297673,1751099450281,-950.27,0.00021095,2]
[368297674,1751099450291,-460.0,0.00021095,2]
[368297675,1751099450300,-460.0,0.00021095,2]
[368297676,1751099450310,-460.0,0.00021095,2]
[368297677,1751099450319,-481.03,0.00021095,2]
[368297678,1751099450328,-460.0,0.00021095,2]
[368297679,1751099450338,-460.0,0.00021095,2]
[368297680,1751099450347,-2224.44,0.00021095,2]
[368297681,1751099450357,-915.82,0.00021095,2]
[368297682,1751099450367,-2092.47,0.00021095,2]
[368297683,1751099450376,-460.0,0.00021095,2]
[368297684,1751099450386,-460.0,0.00021095,2]
[368297685,1751099450395,-2722.65,0.00021095,2]
[368297686,1751099450404,-2287.45,0.00021095,2]
[368297687,1751099450414,-460.0,0.00021095,2]
[368297688,1751099450423,-460.0,0.00021095,2]
[368297689,1751099450432,-460.0,0.00021095,2]
[368297690,1751099450441,-525.54,0.00021095,2]
[368297691,1751099450450,-3380.33,0.00021095,2]
[368297692,1751099450460,-469.96,0.00021095,2]
[368297693,1751099450469,-460.0,0.00021095,2]
[368297694,1751099450478,-460.0,0.00021095,2]
[368297695,1751099450490,-460.0,0.00021095,2]
[368297696,1751099450501,-514.42344976,0.00021095,2]
[368297697,1751099450511,-151.0,0.00021095,2]
[368297698,1751099450521,-460.0,0.00021095,2]
[368297699,1751099450531,-1368.9,0.00021095,2]
[368297700,1751099450541,-151.0,0.00021095,2]
[368297701,1751099450551,-1309.53,0.00021095,2]
[368297702,1751099450560,-2136.66,0.00021095,2]
[368297703,1751099450570,-779.1,0.00021095,2]
[368297704,1751099450579,-922.04,0.00021095,2]
[368297705,1751099450588,-460.0,0.00021095,2]
[368297706,1751099450598,-460.0,0.00021095,2]
[368297707,1751099450608,-1476.74,0.00021095,2]
[368297708,1751099450618,-151.0,0.00021095,2]
[368297709,1751099450627,-549.97497975,0.00021095,2]
[368297710,1751099450637,-573.62,0.00021095,2]
[368297711,1751099450646,-460.0,0.00021095,2]
[368297712,1751099450655,-543.95,0.00021095,2]
[368297713,1751099450665,-465.46,0.00021095,2]
[368297714,1751099450674,-151.0,0.00021095,2]
[368297715,1751099450683,-872.57,0.00021095,2]
[368297716,1751099450692,-670.11,0.00021095,2]
[368297717,1751099450701,-623.9,0.00021095,2]
[368297718,1751099450710,-9968.96107036,0.00021141,4]
[368297719,1751099450719,-7054.58916906,0.00021155,2]
[368297720,1751099450728,-170.43098,0.00021266,5]
[368297721,1751099450738,-212.9,0.0002129,4]
[368297722,1751099450747,-156.682528,0.0002133,2]
[368297723,1751099450756,-151.0,0.0002133,2]
[368297724,1751099450765,-151.0,0.0002133,2]
[368297725,1751099450774,-151.0,0.0002133,2]
[368297726,1751099450783,-151.0,0.0002133,2]
[368297727,1751099450792,-2000.0,0.0002133,2]
[368297728,1751099450802,-151.0,0.00021348,2]
[368297729,1751099450811,-151.0,0.00021348,2]
[368297730,1751099450820,-151.0,0.00021348,2]
[368297731,1751099450829,-151.0,0.00021348,2]
[368297732,1751099450838,-151.0,0.00021348,2]
[368297733,1751099450848,-151.0,0.00021348,2]
[368297734,1751099450857,-153.855991,0.00021348,2]
[368297735,1751099450867,-279.163928,0.00021348,2]
[368297736,1751099450877,-151.0,0.00021348,2]
[368297737,1751099450886,-251.333474,0.00021348,2]
[368297738,1751099450896,-251.333474,0.00021348,2]
[368297739,1751099450905,-151.0,0.00021348,2]
[368297740,1751099450916,-9968.96107036,0.00021348,5]
[368297741,1751099450926,-210.613945,0.00021369,2]
[368297742,1751099450936,-500.0,0.00021369,16]
[368297743,1751099450945,-460.0,0.00021369,2]
[368297744,1751099450954,-460.0,0.00021369,2]
[368297745,1751099450965,-460.0,0.00021369,2]
[368297746,1751099450975,-665.9,0.00021369,2]
[368297747,1751099450985,-460.0,0.00021369,2]
[368297748,1751099450995,-460.0,0.00021369,2]
[368297749,1751099451005,-1543.49,0.00021369,2]
[368297750,1751099451014,-3923.5,0.00021369,2]
[368297751,1751099451023,-151.0,0.00021369,2]
[368297752,1751099451033,-1515.01,0.00021369,2]
[368297753,1751099451042,-1385.81,0.00021369,2]
[368297754,1751099451051,-460.0,0.00021369,2]
[368297755,1751099451061,-460.0,0.00021369,2]
[368297756,1751099451071,-1204.35,0.00021369,2]
[368297757,1751099451080,-2302.16,0.00021369,2]
[368297758,1751099451089,-507.07,0.00021369,2]
[368297759,1751099451099,-460.0,0.00021369,2]
[368297760,1751099451108,-676.15,0.00021369,2]
[368297761,1751099451118,-151.0,0.00021369,2]
[368297762,1751099451127,-216.39733,0.00021369,2]
[368297763,1751099451137,-151.0,0.00021369,2]
[368297764,1751099451148,-216.39733,0.00021369,2]
[368297765,1751099451158,-557.87,0.00021369,2]
[368297766,1751099451167,-2187.52,0.00021369,2]
[368297767,1751099451177,-705.88,0.00021369,2]
[368297768,1751099451186,-650.49,0.00021369,2]
[368297769,1751099451195,-233.499353,0.00021369,2]
[368297770,1751099451204,-233.499353,0.00021369,2]
[368297771,1751099451214,-1308.12,0.00021369,2]
[368297772,1751099451223,-558.93,0.00021369,2]
[368297773,1751099451233,-950.27,0.00021369,2]
[368297774,1751099451242,-460.0,0.00021369,2]
[368297775,1751099451251,-460.0,0.00021369,2]
[368297776,1751099451261,-460.0,0.00021369,2]
[368297777,1751099451270,-481.03,0.00021369,2]
[368297778,1751099451279,-575.19013964,0.00021369,2]
[368297779,1751099451289,-460.0,0.00021369,2]
[368297780,1751099451298,-2224.44,0.00021369,2]
[368297781,1751099451307,-915.82,0.00021369,2]
[368297782,1751099451316,-2092.47,0.00021369,2]
[368297783,1751099451326,-460.0,0.00021369,2]
[368297784,1751099451334,-460.0,0.00021369,2]
[368297785,1751099451344,-2722.65,0.00021369,2]
[368297786,1751099451353,-2287.45,0.00021369,2]
[368297787,1751099451362,-460.0,0.00021369,2]
[368297788,1751099451371,-460.0,0.00021369,2]
[368297789,1751099451380,-460.0,0.00021369,2]
[368297790,1751099451389,-525.54,0.00021369,2]
[368297791,1751099451398,-3380.33,0.00021369,2]
[368297792,1751099451407,-469.96,0.00021369,2]
[368297793,1751099451417,-460.0,0.00021369,2]
[368297794,1751099451426,-460.0,0.00021369,2]
[368297795,1751099451435,-460.0,0.00021369,2]
[368297796,1751099451444,-460.0,0.00021369,2]
[368297797,1751099451453,-1368.9,0.00021369,2]
[368297798,1751099451463,-1309.53,0.00021369,2]
[368297799,1751099451472,-2136.66,0.00021369,2]
[368297800,1751099451481,-779.1,0.00021369,2]
[368297801,1751099451491,-922.04,0.00021369,2]
[368297802,1751099451500,-460.0,0.00021369,2]
[368297803,1751099451510,-460.0,0.00021369,2]
[368297804,1751099451519,-1476.74,0.00021369,2]
[368297805,1751099451529,-573.62,0.00021369,2]
[368297806,1751099451538,-460.0,0.00021369,2]
[368297807,1751099451549,-543.95,0.00021369,2]
[368297808,1751099451558,-465.46,0.00021369,2]
[368297809,1751099451567,-872.57,0.00021369,2]
[368297810,1751099451577,-670.11,0.00021369,2]
[368297811,1751099451586,-623.9,0.00021369,2]
[368297812,1751099451595,-5000.0,0.00021391,2]
[368297813,1751099451605,-472.98,0.00021393,2]
[368297814,1751099451614,-151.0,0.000214,3]
[368297815,1751099451624,-500.0,0.00021444,2]
[368297816,1751099451747,-600.0,0.00021444,2]
[368297817,1751099451760,-500.0,0.00021444,2]
[368297818,1751099451770,-500.0,0.00021444,2]
[368297819,1751099451779,-500.0,0.00021444,2]
[368297820,1751099451788,-500.0,0.00021444,2]
[368297821,1751099451798,-500.0,0.00021444,2]
[368297822,1751099451808,-500.0,0.00021444,2]
[368297823,1751099451818,-160.0,0.00021444,2]
[368297824,1751099451827,-500.0,0.00021444,2]
[368297825,1751099451837,-160.0,0.00021444,2]
[368297826,1751099451848,-500.0,0.00021444,2]
[368297827,1751099451858,-563.71744148,0.00021444,2]
[368297828,1751099451867,-500.0,0.00021444,2]
[368297829,1751099451876,-160.0,0.00021484,2]
[368297830,1751099451886,-160.0,0.00021484,2]
[368297831,1751099451895,-22012.65280196,0.00021487,2]
[368297832,1751099451905,-160.0,0.00021487,2]
[368297833,1751099451918,-160.0,0.00021487,2]
[368297834,1751099451927,-500.0,0.00021487,2]
[368297835,1751099451937,-160.0,0.00021487,2]
[368297836,1751099451946,-500.0,0.00021487,2]
[368297837,1751099451955,-258.4,0.00021487,2]
[368297838,1751099451966,-160.0,0.00021487,2]
[368297839,1751099451975,-500.0,0.00021487,2]
[368297840,1751099451985,-500.0,0.00021487,2]
[368297841,1751099451996,-160.0,0.00021487,2]
[368297842,1751099452005,-500.0,0.00021487,2]
[368297843,1751099452015,-500.0,0.00021487,2]
[368297844,1751099452024,-500.0,0.00021487,2]
[368297845,1751099452034,-500.0,0.00021487,2]
[368297846,1751099452043,-170.43098,0.00021495,6]
[368297847,1751099452053,-465.0,0.00021506,2]
[368297848,1751099452063,-212.9,0.00021524,4]
[368297849,1751099452072,-44879.23481595,0.00021554,2]
[368297850,1751099452203,-6812.81849649,0.00021554,2]
[368297851,1751099452336,-460.0,0.00019178,2]
[368297852,1751099452346,-460.0,0.00019452,2]
[368297853,1751099452356,-355.64,0.00019726,2]
[368297854,1751099452365,-284.52157827,0.00021554,2]
[368297855,1751099452376,-469.47107365,0.00021554,2]
[368297856,1751099452635,-500.0,0.00019178,2]
[368297857,1751099452645,-0.22395119,0.00019178,2]